fUSD/lending_fUSD_20241121
["ID","MTS","AMOUNT","RATE_DAILY","PERIOD"]
[342902955,1732199469986,-2756.78715523,0.00042,30]
[342902956,1732199469998,-6995.87720034,0.00042,30]
[342902957,1732199470039,-4901.79682534,0.00042,30]
[342902958,1732199470048,-1395.65513466,0.00042,2]
[342902959,1732199470057,-240.0,0.00042,120]
[342902960,1732199470067,-20000.0,0.00042,120]
[342902961,1732199470076,-151.0,0.00042,14]
[342902962,1732199470086,-151.0,0.00042,14]
[342902963,1732199470095,-367.743508,0.00042,14]
[342902964,1732199470104,-367.743508,0.00042,14]
[342902965,1732199470113,-150.0,0.00042005,2]
[342902966,1732199470123,-150.0,0.00042005,2]
[342902967,1732199470132,-150.0,0.00042006,2]
[342902968,1732199470140,-150.0,0.00042006,2]
[342902969,1732199470150,-150.0,0.00042009,2]
[342902970,1732199470159,-1319.08171196,0.0004201,2]
[342902971,1732199470168,-150.0,0.0004201,7]
[342902972,1732199470177,-150.0,0.00042018,2]
[342902973,1732199470186,-1558.9060048,0.00042031,7]
[342902974,1732199470196,-150.0,0.00042035,2]
[342902975,1732199470205,-150.0,0.00042038,2]
[342902976,1732199470214,-150.0,0.0004204,2]
[342902977,1732199470224,-150.0,0.00042041,2]
[342902978,1732199470233,-150.0,0.0004205,2]
[342902979,1732199470243,-150.0,0.00042051,2]
[342902980,1732199470252,-150.0,0.00042054,7]
[342902981,1732199470262,-150.0,0.00042055,2]
[342902982,1732199470271,-150.0,0.00042056,2]
[342902983,1732199470281,-150.0,0.00042058,2]
[342902984,1732199470290,-1500.0,0.00042062,7]
[342902985,1732199470299,-659.05186713,0.00042063,7]
[342902986,1732199470308,-167.82061592,0.00042065,2]
[342902987,1732199470317,-150.0,0.0004207,2]
[342902988,1732199470326,-150.0,0.00042073,2]
[342902989,1732199470334,-150.0,0.00042074,2]
[342902990,1732199470344,-150.0,0.00042075,2]
[342902991,1732199470352,-150.0,0.0004208,2]
[342902992,1732199470361,-150.0,0.00042086,2]
[342902993,1732199470370,-150.0,0.00042095,2]
[342902994,1732199470380,-150.0,0.00042101,2]
[342902995,1732199470389,-150.0,0.00042104,7]
[342902996,1732199470398,-150.0,0.00042109,7]
[342902997,1732199470407,-1000.0,0.00042118,2]
[342902998,1732199470416,-150.0,0.00042118,2]
[342902999,1732199470425,-150.0,0.00042128,2]
[342903000,1732199470442,-150.0,0.00042129,7]
[342903001,1732199470454,-150.0,0.00042141,7]
[342903002,1732199470463,-150.0,0.0004216,2]
[342903003,1732199470473,-1500.0,0.00042161,7]
[342903004,1732199470483,-6058.87302906,0.0004219,2]
[342903005,1732199470493,-500.0,0.00042191,18]
[342903006,1732199470502,-500.0,0.00042191,18]
[342903007,1732199470512,-500.0,0.00042191,18]
[342903008,1732199470521,-500.0,0.00042191,18]
[342903009,1732199470531,-500.0,0.00042191,18]
[342903010,1732199470540,-500.0,0.00042191,18]
[342903011,1732199470550,-500.0,0.00042191,18]
[342903012,1732199470560,-500.0,0.00042191,18]
[342903013,1732199470573,-500.0,0.00042191,18]
[342903014,1732199470583,-500.0,0.00042191,18]
[342903015,1732199470592,-500.0,0.00042191,18]
[342903016,1732199470601,-500.0,0.00042191,18]
[342903017,1732199470610,-500.0,0.00042191,18]
[342903018,1732199470619,-500.0,0.00042191,18]
[342903019,1732199470628,-317.35064327,0.00042191,18]
[342903020,1732199470638,-500.0,0.00042191,18]
[342903021,1732199470647,-780.83,0.00042191,18]
[342903022,1732199470656,-778.02,0.00042191,18]
[342903023,1732199470665,-841.3,0.00042191,18]
[342903024,1732199470674,-500.0,0.00042191,18]
[342903025,1732199470688,-500.0,0.00042191,18]
[342903026,1732199470697,-500.0,0.00042191,18]
[342903027,1732199470706,-644.88,0.00042191,18]
[342903028,1732199470715,-500.74,0.00042191,18]
[342903029,1732199470725,-188.42042973,0.00042191,18]
[342903030,1732199470734,-500.0,0.00042191,18]
[342903031,1732199470743,-500.0,0.00042191,18]
[342903032,1732199470753,-500.0,0.00042191,18]
[342903033,1732199470764,-500.0,0.00042191,18]
[342903034,1732199470777,-1032.66,0.00042191,18]
[342903035,1732199470787,-500.0,0.00042191,18]
[342903036,1732199470796,-500.0,0.00042191,18]
[342903037,1732199470807,-500.0,0.00042191,18]
[342903038,1732199470816,-500.0,0.00042191,18]
[342903039,1732199470826,-500.0,0.00042191,18]
[342903040,1732199470836,-500.0,0.00042191,18]
[342903041,1732199470845,-815.66,0.00042191,18]
[342903042,1732199470855,-500.0,0.00042191,18]
[342903043,1732199470864,-661.83,0.00042191,18]
[342903044,1732199470873,-500.0,0.00042191,18]
[342903045,1732199470882,-500.0,0.00042191,18]
[342903046,1732199470891,-500.0,0.00042191,18]
[342903047,1732199470900,-500.0,0.00042191,120]
[342903048,1732199470909,-500.0,0.00042191,18]
[342903049,1732199471079,-500.0,0.00042191,18]
[342903050,1732199471090,-500.0,0.00042191,18]
[342903051,1732199471100,-500.0,0.00042191,18]
[342903052,1732199471109,-1263.69,0.00042191,18]
[342903053,1732199471119,-500.0,0.00042191,18]
[342903054,1732199471128,-500.0,0.00042191,18]
[342903055,1732199471137,-500.0,0.00042191,18]
[342903056,1732199471146,-500.0,0.00042191,18]
[342903057,1732199471155,-500.0,0.00042191,18]
[342903058,1732199471165,-519.82,0.00042191,18]
[342903059,1732199471174,-653.14,0.00042191,18]
[342903060,1732199471187,-500.0,0.00042191,18]
[342903061,1732199471197,-500.0,0.00042191,18]
[342903062,1732199471207,-500.0,0.00042191,18]
[342903063,1732199471216,-500.0,0.00042191,18]
[342903064,1732199471226,-500.0,0.00042191,18]
[342903065,1732199471236,-503.14,0.00042191,18]
[342903066,1732199471245,-540.62,0.00042191,18]
[342903067,1732199471255,-500.0,0.00042191,18]
[342903068,1732199471264,-500.0,0.00042191,18]
[342903069,1732199471274,-619.85,0.00042191,18]
[342903070,1732199471283,-500.0,0.00042191,18]
[342903071,1732199471293,-500.0,0.00042191,18]
[342903072,1732199471302,-587.02,0.00042191,18]
[342903073,1732199471311,-1022.9,0.00042191,18]
[342903074,1732199471321,-500.0,0.00042191,18]
[342903075,1732199471330,-2110.0,0.00042191,30]
[342903076,1732199471340,-544.47,0.00042191,18]
[342903077,1732199471349,-500.0,0.00042191,18]
[342903078,1732199471358,-500.0,0.00042191,18]
[342903079,1732199471367,-598.89,0.00042191,18]
[342903080,1732199471376,-500.0,0.00042191,18]
[342903081,1732199471385,-500.0,0.00042191,18]
[342903082,1732199471394,-500.0,0.00042191,18]
[342903083,1732199471404,-575.52,0.00042191,18]
[342903084,1732199471413,-500.0,0.00042191,18]
[342903085,1732199471423,-500.0,0.00042191,18]
[342903086,1732199471432,-752.96,0.00042191,18]
[342903087,1732199471445,-664.75,0.00042191,18]
[342903088,1732199471455,-500.0,0.00042191,18]
[342903089,1732199471465,-500.0,0.00042191,18]
[342903090,1732199471474,-1075.41,0.00042191,18]
[342903091,1732199471484,-500.0,0.00042191,18]
[342903092,1732199471493,-200.0,0.00042191,7]
[342903093,1732199471504,-500.0,0.00042191,18]
[342903094,1732199471514,-500.0,0.00042191,18]
[342903095,1732199471523,-531.22,0.00042191,18]
[342903096,1732199471534,-500.0,0.00042191,18]
[342903097,1732199471544,-551.95,0.00042191,18]
[342903098,1732199471554,-500.0,0.00042191,18]
[342903099,1732199471563,-976.25,0.00042191,18]
[342903100,1732199471573,-1323.6,0.00042191,18]
[342903101,1732199471583,-500.0,0.00042191,18]
[342903102,1732199471592,-500.0,0.00042191,18]
[342903103,1732199471602,-500.0,0.00042191,18]
[342903104,1732199471611,-500.0,0.00042191,7]
[342903105,1732199471621,-500.0,0.00042191,18]
[342903106,1732199471630,-500.0,0.00042191,18]
[342903107,1732199471640,-544.81,0.00042191,18]
[342903108,1732199471649,-500.0,0.00042191,18]
[342903109,1732199471658,-500.0,0.00042191,18]
[342903110,1732199471668,-500.0,0.00042191,18]
[342903111,1732199471678,-1368.0,0.00042191,18]
[342903112,1732199471692,-500.0,0.00042191,18]
[342903113,1732199471702,-617.18,0.00042191,18]
[342903114,1732199471712,-500.0,0.00042191,18]
[342903115,1732199471723,-500.0,0.00042191,18]
[342903116,1732199471733,-500.0,0.00042191,18]
[342903117,1732199471743,-567.49,0.00042191,18]
[342903118,1732199471753,-405.43579397,0.00042191,18]
[342903119,1732199471765,-586.87,0.00042191,18]
[342903120,1732199471774,-500.0,0.00042191,18]
[342903121,1732199471788,-500.0,0.00042191,18]
[342903122,1732199471797,-500.0,0.00042191,18]
[342903123,1732199471807,-500.0,0.00042191,18]
[342903124,1732199471817,-500.0,0.00042191,18]
[342903125,1732199471827,-666.68,0.00042191,18]
[342903126,1732199471837,-514.95,0.00042191,18]
[342903127,1732199471846,-500.0,0.00042191,18]
[342903128,1732199471859,-1095.65,0.00042191,18]
[342903129,1732199471868,-669.92,0.00042191,18]
[342903130,1732199471878,-500.0,0.00042191,18]
[342903131,1732199471887,-500.0,0.00042191,18]
[342903132,1732199471897,-500.0,0.00042191,18]
[342903133,1732199471906,-846.58,0.00042191,18]
[342903134,1732199471915,-1076.99,0.00042191,18]
[342903135,1732199471925,-500.0,0.00042191,18]
[342903136,1732199471938,-500.0,0.00042191,18]
[342903137,1732199471950,-598.83,0.00042191,18]
[342903138,1732199471959,-655.07,0.00042191,18]
[342903139,1732199471968,-500.0,0.00042191,18]
[342903140,1732199471977,-790.41,0.00042191,18]
[342903141,1732199471987,-500.0,0.00042191,18]
[342903142,1732199471996,-911.49,0.00042191,18]
[342903143,1732199472006,-500.0,0.00042191,18]
[342903144,1732199472015,-500.0,0.00042191,18]
[342903145,1732199472024,-500.0,0.00042191,18]
[342903146,1732199472034,-1682.08,0.00042191,18]
[342903147,1732199472043,-500.0,0.00042191,18]
[342903148,1732199472053,-1107.76,0.00042191,18]
[342903149,1732199472063,-875.4,0.00042191,18]
[342903150,1732199472073,-1132.01,0.00042191,18]
[342903151,1732199472082,-500.0,0.00042191,18]
[342903152,1732199472092,-623.95,0.00042191,18]
[342903153,1732199472101,-500.0,0.00042191,18]
[342903154,1732199472111,-500.0,0.00042191,18]
[342903155,1732199472120,-500.0,0.00042191,18]
[342903156,1732199472130,-500.0,0.00042191,18]
[342903157,1732199472140,-500.0,0.00042191,18]
[342903158,1732199472150,-533.69,0.00042191,18]
[342903159,1732199472159,-500.0,0.00042191,18]
[342903160,1732199472169,-920.48,0.00042191,18]
[342903161,1732199472178,-773.68,0.00042191,18]
[342903162,1732199472190,-805.51,0.00042191,18]
[342903163,1732199472201,-500.0,0.00042191,18]
[342903164,1732199472211,-500.0,0.00042191,18]
[342903165,1732199472220,-500.0,0.00042191,18]
[342903166,1732199472230,-526.27,0.00042191,18]
[342903167,1732199472239,-1069.79,0.00042191,18]
[342903168,1732199472249,-683.11,0.00042191,18]
[342903169,1732199472259,-500.0,0.00042191,18]
[342903170,1732199472268,-500.0,0.00042191,18]
[342903171,1732199472278,-500.0,0.00042191,18]
[342903172,1732199472289,-1188.11,0.00042191,18]
[342903173,1732199472298,-1080.92,0.00042191,18]
[342903174,1732199472308,-500.0,0.00042191,18]
[342903175,1732199472317,-500.0,0.00042191,18]
[342903176,1732199472327,-703.8,0.00042191,18]
[342903177,1732199472337,-500.0,0.00042191,18]
[342903178,1732199472346,-527.44,0.00042191,18]
[342903179,1732199472356,-500.0,0.00042191,18]
[342903180,1732199472366,-520.86848176,0.00042191,18]
[342903181,1732199472375,-900.83,0.00042191,18]
[342903182,1732199472386,-269.0,0.00042191,18]
[342903183,1732199472395,-500.0,0.00042191,18]
[342903184,1732199472405,-881.44,0.00042191,18]
[342903185,1732199472415,-500.0,0.00042191,18]
[342903186,1732199472424,-500.0,0.00042191,18]
[342903187,1732199472433,-164.23948266,0.00042191,18]
[342903188,1732199472445,-500.0,0.00042191,18]
[342903189,1732199472454,-500.0,0.00042191,18]
[342903190,1732199472464,-513.53,0.00042191,18]
[342903191,1732199472474,-500.0,0.00042191,18]
[342903192,1732199472483,-500.0,0.00042191,18]
[342903193,1732199472492,-592.27,0.00042191,18]
[342903194,1732199472502,-500.0,0.00042191,18]
[342903195,1732199472512,-529.9,0.00042191,18]
[342903196,1732199472522,-500.0,0.00042191,18]
[342903197,1732199472532,-500.0,0.00042191,18]
[342903198,1732199472541,-500.0,0.00042191,18]
[342903199,1732199472551,-531.84,0.00042191,18]
[342903200,1732199472561,-500.0,0.00042191,18]
[342903201,1732199472571,-500.0,0.00042191,18]
[342903202,1732199472581,-927.48,0.00042191,18]
[342903203,1732199472591,-580.51,0.00042191,18]
[342903204,1732199472600,-500.0,0.00042191,18]
[342903205,1732199472610,-252.1726504,0.00042191,18]
[342903206,1732199472620,-1042.61,0.00042191,18]
[342903207,1732199472630,-552.74,0.00042191,18]
[342903208,1732199472639,-500.0,0.00042191,18]
[342903209,1732199472649,-539.14,0.00042191,18]
[342903210,1732199472658,-500.0,0.00042191,18]
[342903211,1732199472668,-500.0,0.00042191,18]
[342903212,1732199472678,-500.0,0.00042191,18]
[342903213,1732199472691,-500.0,0.00042191,18]
[342903214,1732199472707,-500.0,0.00042191,18]
[342903215,1732199472716,-440.14,0.00042191,18]
[342903216,1732199472726,-528.42,0.00042191,18]
[342903217,1732199472735,-500.0,0.00042191,18]
[342903218,1732199472745,-500.0,0.00042191,18]
[342903219,1732199472756,-500.0,0.00042191,18]
[342903220,1732199472773,-1433.81,0.00042191,18]
[342903221,1732199472783,-500.0,0.00042191,18]
[342903222,1732199472793,-567.55,0.00042191,18]
[342903223,1732199472803,-1338.66,0.00042191,18]
[342903224,1732199472815,-500.0,0.00042191,18]
[342903225,1732199472826,-500.0,0.00042191,18]
[342903226,1732199472836,-1410.19,0.00042191,18]
[342903227,1732199472847,-500.0,0.00042191,18]
[342903228,1732199472857,-699.66,0.00042191,18]
[342903229,1732199472866,-500.0,0.00042191,18]
[342903230,1732199472876,-500.0,0.00042191,18]
[342903231,1732199472885,-519.33964178,0.00042191,18]
[342903232,1732199472895,-500.0,0.00042191,18]
[342903233,1732199472904,-500.0,0.00042191,18]
[342903234,1732199472914,-500.0,0.00042191,18]
[342903235,1732199472924,-643.83,0.00042191,18]
[342903236,1732199472933,-500.0,0.00042191,18]
[342903237,1732199472947,-500.0,0.00042191,18]
[342903238,1732199472957,-500.0,0.00042191,18]
[342903239,1732199472967,-500.0,0.00042191,18]
[342903240,1732199472977,-500.0,0.00042191,18]
[342903241,1732199472986,-563.28,0.00042191,18]
[342903242,1732199472996,-500.0,0.00042191,18]
[342903243,1732199473005,-715.43,0.00042191,18]
[342903244,1732199473015,-500.0,0.00042191,18]
[342903245,1732199473025,-500.0,0.00042191,18]
[342903246,1732199473034,-1239.95,0.00042191,18]
[342903247,1732199473044,-525.39,0.00042191,18]
[342903248,1732199473053,-500.0,0.00042191,18]
[342903249,1732199473062,-500.0,0.00042191,18]
[342903250,1732199473072,-500.0,0.00042191,18]
[342903251,1732199473081,-500.0,0.00042191,18]
[342903252,1732199473091,-500.0,0.00042191,18]
[342903253,1732199473101,-500.0,0.00042191,18]
[342903254,1732199473110,-849.0,0.00042191,18]
[342903255,1732199473120,-1580.19,0.00042191,18]
[342903256,1732199473129,-500.0,0.00042191,18]
[342903257,1732199473138,-500.0,0.00042191,18]
[342903258,1732199473147,-405.9541006,0.00042191,18]
[342903259,1732199473157,-500.0,0.00042191,18]
[342903260,1732199473167,-638.5166118,0.00042191,18]
[342903261,1732199473176,-500.0,0.00042191,18]
[342903262,1732199473185,-576.19,0.00042191,18]
[342903263,1732199473197,-500.0,0.00042191,18]
[342903264,1732199473207,-500.0,0.00042191,18]
[342903265,1732199473217,-1184.06,0.00042191,18]
[342903266,1732199473226,-627.25,0.00042191,18]
[342903267,1732199473236,-500.0,0.00042191,18]
[342903268,1732199473245,-1046.52,0.00042191,18]
[342903269,1732199473558,-782.8,0.00042191,18]
[342903270,1732199473568,-500.0,0.00042191,18]
[342903271,1732199473578,-500.0,0.00042191,18]
[342903272,1732199473588,-831.01,0.00042191,18]
[342903273,1732199473598,-500.0,0.00042191,18]
[342903274,1732199473608,-500.0,0.00042191,18]
[342903275,1732199473618,-500.0,0.00042191,18]
[342903276,1732199473628,-724.43,0.00042191,18]
[342903277,1732199473638,-500.0,0.00042191,18]
[342903278,1732199473648,-592.08,0.00042191,18]
[342903279,1732199473658,-500.0,0.00042191,18]
[342903280,1732199473668,-500.0,0.00042191,18]
[342903281,1732199473678,-500.0,0.00042191,18]
[342903282,1732199473690,-500.0,0.00042191,18]
[342903283,1732199473700,-781.59,0.00042191,18]
[342903284,1732199473710,-500.0,0.00042191,18]
[342903285,1732199473719,-500.0,0.00042191,18]
[342903286,1732199473729,-500.0,0.00042191,18]
[342903287,1732199473739,-720.08,0.00042191,18]
[342903288,1732199473749,-500.0,0.00042191,18]
[342903289,1732199473760,-568.73,0.00042191,18]
[342903290,1732199473770,-223.41788943,0.00042191,18]
[342903291,1732199473783,-2351.59,0.00042191,18]
[342903292,1732199473793,-501.92,0.00042191,18]
[342903293,1732199473803,-831.45,0.00042191,18]
[342903294,1732199473813,-1224.29,0.00042191,18]
[342903295,1732199473824,-923.7,0.00042191,18]
[342903296,1732199473834,-725.08,0.00042191,18]
[342903297,1732199473844,-500.0,0.00042191,18]
[342903298,1732199473854,-637.17,0.00042191,18]
[342903299,1732199473863,-556.73,0.00042191,18]
[342903300,1732199473873,-500.0,0.00042191,18]
[342903301,1732199473882,-500.0,0.00042191,18]
[342903302,1732199473891,-519.94,0.00042191,18]
[342903303,1732199473901,-500.0,0.00042191,18]
[342903304,1732199473910,-619.24720685,0.00042191,18]
[342903305,1732199473919,-1025.56,0.00042191,18]
[342903306,1732199473930,-1343.62,0.00042191,18]
[342903307,1732199473942,-500.0,0.00042191,18]
[342903308,1732199473952,-500.0,0.00042191,18]
[342903309,1732199473962,-583.5,0.00042191,18]
[342903310,1732199473972,-500.0,0.00042191,18]
[342903311,1732199473982,-500.0,0.00042191,18]
[342903312,1732199473992,-278.67827669,0.00042191,18]
[342903313,1732199474002,-1321.86,0.00042191,18]
[342903314,1732199474011,-500.0,0.00042191,18]
[342903315,1732199474022,-754.87,0.00042191,18]
[342903316,1732199474031,-957.89,0.00042191,18]
[342903317,1732199474041,-1606.25,0.00042191,18]
[342903318,1732199474050,-500.0,0.00042191,18]
[342903319,1732199474060,-500.0,0.00042191,18]
[342903320,1732199474071,-500.0,0.00042191,18]
[342903321,1732199474080,-500.0,0.00042191,18]
[342903322,1732199474090,-257.68509966,0.00042191,18]
[342903323,1732199474101,-500.0,0.00042191,18]
[342903324,1732199474111,-1198.83,0.00042191,18]
[342903325,1732199474120,-1224.56,0.00042191,18]
[342903326,1732199474130,-500.0,0.00042191,18]
[342903327,1732199474139,-500.0,0.00042191,18]
[342903328,1732199474149,-1944.0,0.00042191,18]
[342903329,1732199474159,-844.23,0.00042191,18]
[342903330,1732199474169,-500.0,0.00042191,18]
[342903331,1732199474179,-20792.91,0.00042191,18]
[342903332,1732199474193,-500.0,0.00042191,18]
[342903333,1732199474203,-915.43,0.00042191,18]
[342903334,1732199474212,-1472.33,0.00042191,18]
[342903335,1732199474222,-500.0,0.00042191,18]
[342903336,1732199474232,-500.0,0.00042191,18]
[342903337,1732199474241,-1620.61,0.00042191,18]
[342903338,1732199474251,-951.6,0.00042191,18]
[342903339,1732199474262,-500.0,0.00042191,18]
[342903340,1732199474272,-1310.37,0.00042191,18]
[342903341,1732199474282,-500.0,0.00042191,18]
[342903342,1732199474292,-13540.77,0.00042191,5]
[342903343,1732199474302,-897.1,0.00042191,18]
[342903344,1732199474313,-629.14,0.00042191,18]
[342903345,1732199474322,-875.2,0.00042191,18]
[342903346,1732199474333,-500.0,0.00042191,18]
[342903347,1732199474342,-500.0,0.00042191,18]
[342903348,1732199474352,-547.3,0.00042191,18]
[342903349,1732199474363,-500.0,0.00042191,18]
[342903350,1732199474373,-500.0,0.00042191,18]
[342903351,1732199474383,-500.0,0.00042191,18]
[342903352,1732199474392,-500.0,0.00042191,18]
[342903353,1732199474402,-500.0,0.00042191,18]
[342903354,1732199474412,-500.0,0.00042191,18]
[342903355,1732199474422,-500.0,0.00042191,18]
[342903356,1732199474432,-574.36,0.00042191,18]
[342903357,1732199474445,-500.0,0.00042191,18]
[342903358,1732199474454,-524.78,0.00042191,18]
[342903359,1732199474464,-500.0,0.00042191,18]
[342903360,1732199474473,-500.0,0.00042191,18]
[342903361,1732199474483,-500.0,0.00042191,18]
[342903362,1732199474493,-523.67,0.00042191,18]
[342903363,1732199474503,-538.28,0.00042191,18]
[342903364,1732199474513,-500.0,0.00042191,18]
[342903365,1732199474522,-500.0,0.00042191,18]
[342903366,1732199474532,-500.0,0.00042191,18]
[342903367,1732199474542,-500.0,0.00042191,18]
[342903368,1732199474553,-500.0,0.00042191,18]
[342903369,1732199474562,-500.0,0.00042191,18]
[342903370,1732199474573,-500.0,0.00042191,18]
[342903371,1732199474583,-500.0,0.00042191,18]
[342903372,1732199474593,-2381.3,0.00042191,18]
[342903373,1732199474602,-2579.86,0.00042191,18]
[342903374,1732199474612,-1957.75,0.00042191,18]
[342903375,1732199474622,-753.6,0.00042191,18]
[342903376,1732199474631,-654.89,0.00042191,18]
[342903377,1732199474641,-500.0,0.00042191,18]
[342903378,1732199474650,-3745.49,0.00042191,18]
[342903379,1732199474659,-500.76,0.00042191,18]
[342903380,1732199474668,-507.2,0.00042191,18]
[342903381,1732199474679,-683.13,0.00042191,18]
[342903382,1732199474691,-14860.05,0.00042191,18]
[342903383,1732199474702,-523.71,0.00042191,18]
[342903384,1732199474712,-1008.3,0.00042191,18]
[342903385,1732199474722,-1260.3,0.00042191,18]
[342903386,1732199474732,-675.11,0.00042191,18]
[342903387,1732199474742,-1290.48,0.00042191,18]
[342903388,1732199474753,-500.0,0.00042191,18]
[342903389,1732199474765,-1291.16,0.00042191,18]
[342903390,1732199474777,-846.23,0.00042191,18]
[342903391,1732199474787,-500.0,0.00042191,18]
[342903392,1732199474796,-500.0,0.00042191,18]
[342903393,1732199474807,-581.71,0.00042191,18]
[342903394,1732199474817,-3778.72,0.00042191,18]
[342903395,1732199474827,-921.32,0.00042191,18]
[342903396,1732199474836,-3513.14,0.00042191,18]
[342903397,1732199474846,-532.42,0.00042191,18]
[342903398,1732199474856,-632.39,0.00042191,18]
[342903399,1732199474866,-1143.04,0.00042191,18]
[342903400,1732199474876,-575.56,0.00042191,18]
[342903401,1732199474885,-500.0,0.00042191,18]
[342903402,1732199474895,-500.0,0.00042191,18]
[342903403,1732199474906,-500.0,0.00042191,18]
[342903404,1732199474916,-667.59,0.00042191,18]
[342903405,1732199474926,-503.3,0.00042191,18]
[342903406,1732199474936,-500.0,0.00042191,18]
[342903407,1732199474949,-500.0,0.00042191,18]
[342903408,1732199474959,-506.82,0.00042191,18]
[342903409,1732199474969,-500.0,0.00042191,18]
[342903410,1732199474979,-2396.91,0.00042191,18]
[342903411,1732199474989,-500.0,0.00042191,18]
[342903412,1732199474999,-500.0,0.00042191,18]
[342903413,1732199475009,-500.0,0.00042191,18]
[342903414,1732199475019,-500.0,0.00042191,18]
[342903415,1732199475028,-2392.3,0.00042191,18]
[342903416,1732199475038,-576.57,0.00042191,18]
[342903417,1732199475048,-500.0,0.00042191,18]
[342903418,1732199475057,-1817.41,0.00042191,18]
[342903419,1732199475067,-734.85,0.00042191,18]
[342903420,1732199475077,-500.0,0.00042191,18]
[342903421,1732199475087,-500.0,0.00042191,18]
[342903422,1732199475096,-891.12,0.00042191,18]
[342903423,1732199475106,-1535.09,0.00042191,18]
[342903424,1732199475116,-1171.48,0.00042191,18]
[342903425,1732199475125,-500.0,0.00042191,18]
[342903426,1732199475135,-930.5,0.00042191,18]
[342903427,1732199475144,-1073.6,0.00042191,18]
[342903428,1732199475154,-500.0,0.00042191,18]
[342903429,1732199475163,-1426.95,0.00042191,18]
[342903430,1732199475174,-2396.92,0.00042191,18]
[342903431,1732199475183,-2250.73,0.00042191,18]
[342903432,1732199475196,-4948.4,0.00042191,18]
[342903433,1732199475205,-500.0,0.00042191,18]
[342903434,1732199475214,-500.0,0.00042191,18]
[342903435,1732199475223,-500.0,0.00042191,18]
[342903436,1732199475233,-1324.11,0.00042191,18]
[342903437,1732199475243,-500.0,0.00042191,18]
[342903438,1732199475253,-914.54,0.00042191,18]
[342903439,1732199475262,-500.0,0.00042191,18]
[342903440,1732199475272,-534.27,0.00042191,7]
[342903441,1732199475282,-705.08,0.00042191,18]
[342903442,1732199475291,-653.14,0.00042191,18]
[342903443,1732199475301,-632.98,0.00042191,18]
[342903444,1732199475311,-500.0,0.00042191,18]
[342903445,1732199475320,-668.12,0.00042191,18]
[342903446,1732199475330,-500.0,0.00042191,18]
[342903447,1732199475340,-500.0,0.00042191,18]
[342903448,1732199475350,-1184.36,0.00042191,18]
[342903449,1732199475359,-500.0,0.00042191,18]
[342903450,1732199475369,-500.0,0.00042191,18]
[342903451,1732199475378,-500.0,0.00042191,18]
[342903452,1732199475388,-543.6,0.00042191,18]
[342903453,1732199475397,-2215.45,0.00042191,18]
[342903454,1732199475407,-500.0,0.00042191,18]